{"text_format":"1","workbook":"xlsx","n_sheets":1,"sheets":["Feuil1"],"not_rendered":{"charts":0,"images":0,"macros":1,"external_links":1,"defined_names":0,"comments":0,"pivot_tables":0},"unopened":[],"bounds":{"document_bytes":16777216,"sheet_cells":100000,"rows_first":2000,"rows_last":500,"rows_between":2000,"halvings":0,"cell_chars":16384,"cell_head_chars":4096},"cells_cut":0,"cells_raw":0,"read":"whole","date_system":"1900"}

{"sheet":"Feuil1","index":0,"n_rows":21,"n_cols":7,"rows_kept":21,"cut":false,"hidden":false,"merged":[]}
[]
[]
[]
[]
[]
["SD","ETAT LOGEMENT","TYPE","M2","ADRESSE","CP","COMMUNE"]
[2223,null,{"$f":"INDEX('[1]BASE LOGEMENTS VILLE 2018'!C:C, MATCH(Table6[[#This Row],[SD]],'[1]BASE LOGEMENTS VILLE 2018'!A:A,0))","v":{"$error":"#N/A"}},{"$f":"INDEX('[1]BASE LOGEMENTS VILLE 2018'!J:J, MATCH(Table6[[#This Row],[SD]],'[1]BASE LOGEMENTS VILLE 2018'!A:A,0))","v":{"$error":"#N/A"}},{"$f":"INDEX('[1]BASE LOGEMENTS VILLE 2018'!E:E, MATCH(Table6[[#This Row],[SD]],'[1]BASE LOGEMENTS VILLE 2018'!A:A,0))","v":{"$error":"#N/A"}},{"$f":"INDEX('[1]BASE LOGEMENTS VILLE 2018'!F:F, MATCH(Table6[[#This Row],[SD]],'[1]BASE LOGEMENTS VILLE 2018'!A:A,0))","v":{"$error":"#N/A"}},{"$f":"INDEX('[1]BASE LOGEMENTS VILLE 2018'!G:G, MATCH(Table6[[#This Row],[SD]],'[1]BASE LOGEMENTS VILLE 2018'!A:A,0))","v":{"$error":"#N/A"}}]
[1805,null,{"$f":"INDEX('[1]BASE LOGEMENTS VILLE 2018'!C:C, MATCH(Table6[[#This Row],[SD]],'[1]BASE LOGEMENTS VILLE 2018'!A:A,0))","v":{"$error":"#N/A"}},{"$f":"INDEX('[1]BASE LOGEMENTS VILLE 2018'!J:J, MATCH(Table6[[#This Row],[SD]],'[1]BASE LOGEMENTS VILLE 2018'!A:A,0))","v":{"$error":"#N/A"}},{"$f":"INDEX('[1]BASE LOGEMENTS VILLE 2018'!E:E, MATCH(Table6[[#This Row],[SD]],'[1]BASE LOGEMENTS VILLE 2018'!A:A,0))","v":{"$error":"#N/A"}},{"$f":"INDEX('[1]BASE LOGEMENTS VILLE 2018'!F:F, MATCH(Table6[[#This Row],[SD]],'[1]BASE LOGEMENTS VILLE 2018'!A:A,0))","v":{"$error":"#N/A"}},{"$f":"INDEX('[1]BASE LOGEMENTS VILLE 2018'!G:G, MATCH(Table6[[#This Row],[SD]],'[1]BASE LOGEMENTS VILLE 2018'!A:A,0))","v":{"$error":"#N/A"}}]
[314,null,{"$f":"INDEX('[1]BASE LOGEMENTS VILLE 2018'!C:C, MATCH(Table6[[#This Row],[SD]],'[1]BASE LOGEMENTS VILLE 2018'!A:A,0))","v":{"$error":"#N/A"}},{"$f":"INDEX('[1]BASE LOGEMENTS VILLE 2018'!J:J, MATCH(Table6[[#This Row],[SD]],'[1]BASE LOGEMENTS VILLE 2018'!A:A,0))","v":{"$error":"#N/A"}},{"$f":"INDEX('[1]BASE LOGEMENTS VILLE 2018'!E:E, MATCH(Table6[[#This Row],[SD]],'[1]BASE LOGEMENTS VILLE 2018'!A:A,0))","v":{"$error":"#N/A"}},{"$f":"INDEX('[1]BASE LOGEMENTS VILLE 2018'!F:F, MATCH(Table6[[#This Row],[SD]],'[1]BASE LOGEMENTS VILLE 2018'!A:A,0))","v":{"$error":"#N/A"}},{"$f":"INDEX('[1]BASE LOGEMENTS VILLE 2018'!G:G, MATCH(Table6[[#This Row],[SD]],'[1]BASE LOGEMENTS VILLE 2018'!A:A,0))","v":{"$error":"#N/A"}}]
[7,null,{"$f":"INDEX('[1]BASE LOGEMENTS VILLE 2018'!C:C, MATCH(Table6[[#This Row],[SD]],'[1]BASE LOGEMENTS VILLE 2018'!A:A,0))","v":{"$error":"#N/A"}},{"$f":"INDEX('[1]BASE LOGEMENTS VILLE 2018'!J:J, MATCH(Table6[[#This Row],[SD]],'[1]BASE LOGEMENTS VILLE 2018'!A:A,0))","v":{"$error":"#N/A"}},{"$f":"INDEX('[1]BASE LOGEMENTS VILLE 2018'!E:E, MATCH(Table6[[#This Row],[SD]],'[1]BASE LOGEMENTS VILLE 2018'!A:A,0))","v":{"$error":"#N/A"}},{"$f":"INDEX('[1]BASE LOGEMENTS VILLE 2018'!F:F, MATCH(Table6[[#This Row],[SD]],'[1]BASE LOGEMENTS VILLE 2018'!A:A,0))","v":{"$error":"#N/A"}},{"$f":"INDEX('[1]BASE LOGEMENTS VILLE 2018'!G:G, MATCH(Table6[[#This Row],[SD]],'[1]BASE LOGEMENTS VILLE 2018'!A:A,0))","v":{"$error":"#N/A"}}]
[1295,null,{"$f":"INDEX('[1]BASE LOGEMENTS VILLE 2018'!C:C, MATCH(Table6[[#This Row],[SD]],'[1]BASE LOGEMENTS VILLE 2018'!A:A,0))","v":{"$error":"#N/A"}},{"$f":"INDEX('[1]BASE LOGEMENTS VILLE 2018'!J:J, MATCH(Table6[[#This Row],[SD]],'[1]BASE LOGEMENTS VILLE 2018'!A:A,0))","v":{"$error":"#N/A"}},{"$f":"INDEX('[1]BASE LOGEMENTS VILLE 2018'!E:E, MATCH(Table6[[#This Row],[SD]],'[1]BASE LOGEMENTS VILLE 2018'!A:A,0))","v":{"$error":"#N/A"}},{"$f":"INDEX('[1]BASE LOGEMENTS VILLE 2018'!F:F, MATCH(Table6[[#This Row],[SD]],'[1]BASE LOGEMENTS VILLE 2018'!A:A,0))","v":{"$error":"#N/A"}},{"$f":"INDEX('[1]BASE LOGEMENTS VILLE 2018'!G:G, MATCH(Table6[[#This Row],[SD]],'[1]BASE LOGEMENTS VILLE 2018'!A:A,0))","v":{"$error":"#N/A"}}]
[1606,null,{"$f":"INDEX('[1]BASE LOGEMENTS VILLE 2018'!C:C, MATCH(Table6[[#This Row],[SD]],'[1]BASE LOGEMENTS VILLE 2018'!A:A,0))","v":{"$error":"#N/A"}},{"$f":"INDEX('[1]BASE LOGEMENTS VILLE 2018'!J:J, MATCH(Table6[[#This Row],[SD]],'[1]BASE LOGEMENTS VILLE 2018'!A:A,0))","v":{"$error":"#N/A"}},{"$f":"INDEX('[1]BASE LOGEMENTS VILLE 2018'!E:E, MATCH(Table6[[#This Row],[SD]],'[1]BASE LOGEMENTS VILLE 2018'!A:A,0))","v":{"$error":"#N/A"}},{"$f":"INDEX('[1]BASE LOGEMENTS VILLE 2018'!F:F, MATCH(Table6[[#This Row],[SD]],'[1]BASE LOGEMENTS VILLE 2018'!A:A,0))","v":{"$error":"#N/A"}},{"$f":"INDEX('[1]BASE LOGEMENTS VILLE 2018'!G:G, MATCH(Table6[[#This Row],[SD]],'[1]BASE LOGEMENTS VILLE 2018'!A:A,0))","v":{"$error":"#N/A"}}]
[1383,null,{"$f":"INDEX('[1]BASE LOGEMENTS VILLE 2018'!C:C, MATCH(Table6[[#This Row],[SD]],'[1]BASE LOGEMENTS VILLE 2018'!A:A,0))","v":{"$error":"#N/A"}},{"$f":"INDEX('[1]BASE LOGEMENTS VILLE 2018'!J:J, MATCH(Table6[[#This Row],[SD]],'[1]BASE LOGEMENTS VILLE 2018'!A:A,0))","v":{"$error":"#N/A"}},{"$f":"INDEX('[1]BASE LOGEMENTS VILLE 2018'!E:E, MATCH(Table6[[#This Row],[SD]],'[1]BASE LOGEMENTS VILLE 2018'!A:A,0))","v":{"$error":"#N/A"}},{"$f":"INDEX('[1]BASE LOGEMENTS VILLE 2018'!F:F, MATCH(Table6[[#This Row],[SD]],'[1]BASE LOGEMENTS VILLE 2018'!A:A,0))","v":{"$error":"#N/A"}},{"$f":"INDEX('[1]BASE LOGEMENTS VILLE 2018'!G:G, MATCH(Table6[[#This Row],[SD]],'[1]BASE LOGEMENTS VILLE 2018'!A:A,0))","v":{"$error":"#N/A"}}]
[1459,null,{"$f":"INDEX('[1]BASE LOGEMENTS VILLE 2018'!C:C, MATCH(Table6[[#This Row],[SD]],'[1]BASE LOGEMENTS VILLE 2018'!A:A,0))","v":{"$error":"#N/A"}},{"$f":"INDEX('[1]BASE LOGEMENTS VILLE 2018'!J:J, MATCH(Table6[[#This Row],[SD]],'[1]BASE LOGEMENTS VILLE 2018'!A:A,0))","v":{"$error":"#N/A"}},{"$f":"INDEX('[1]BASE LOGEMENTS VILLE 2018'!E:E, MATCH(Table6[[#This Row],[SD]],'[1]BASE LOGEMENTS VILLE 2018'!A:A,0))","v":{"$error":"#N/A"}},{"$f":"INDEX('[1]BASE LOGEMENTS VILLE 2018'!F:F, MATCH(Table6[[#This Row],[SD]],'[1]BASE LOGEMENTS VILLE 2018'!A:A,0))","v":{"$error":"#N/A"}},{"$f":"INDEX('[1]BASE LOGEMENTS VILLE 2018'!G:G, MATCH(Table6[[#This Row],[SD]],'[1]BASE LOGEMENTS VILLE 2018'!A:A,0))","v":{"$error":"#N/A"}}]
[611,null,{"$f":"INDEX('[1]BASE LOGEMENTS VILLE 2018'!C:C, MATCH(Table6[[#This Row],[SD]],'[1]BASE LOGEMENTS VILLE 2018'!A:A,0))","v":{"$error":"#N/A"}},{"$f":"INDEX('[1]BASE LOGEMENTS VILLE 2018'!J:J, MATCH(Table6[[#This Row],[SD]],'[1]BASE LOGEMENTS VILLE 2018'!A:A,0))","v":{"$error":"#N/A"}},{"$f":"INDEX('[1]BASE LOGEMENTS VILLE 2018'!E:E, MATCH(Table6[[#This Row],[SD]],'[1]BASE LOGEMENTS VILLE 2018'!A:A,0))","v":{"$error":"#N/A"}},{"$f":"INDEX('[1]BASE LOGEMENTS VILLE 2018'!F:F, MATCH(Table6[[#This Row],[SD]],'[1]BASE LOGEMENTS VILLE 2018'!A:A,0))","v":{"$error":"#N/A"}},{"$f":"INDEX('[1]BASE LOGEMENTS VILLE 2018'!G:G, MATCH(Table6[[#This Row],[SD]],'[1]BASE LOGEMENTS VILLE 2018'!A:A,0))","v":{"$error":"#N/A"}}]
[1550,null,{"$f":"INDEX('[1]BASE LOGEMENTS VILLE 2018'!C:C, MATCH(Table6[[#This Row],[SD]],'[1]BASE LOGEMENTS VILLE 2018'!A:A,0))","v":{"$error":"#N/A"}},{"$f":"INDEX('[1]BASE LOGEMENTS VILLE 2018'!J:J, MATCH(Table6[[#This Row],[SD]],'[1]BASE LOGEMENTS VILLE 2018'!A:A,0))","v":{"$error":"#N/A"}},{"$f":"INDEX('[1]BASE LOGEMENTS VILLE 2018'!E:E, MATCH(Table6[[#This Row],[SD]],'[1]BASE LOGEMENTS VILLE 2018'!A:A,0))","v":{"$error":"#N/A"}},{"$f":"INDEX('[1]BASE LOGEMENTS VILLE 2018'!F:F, MATCH(Table6[[#This Row],[SD]],'[1]BASE LOGEMENTS VILLE 2018'!A:A,0))","v":{"$error":"#N/A"}},{"$f":"INDEX('[1]BASE LOGEMENTS VILLE 2018'!G:G, MATCH(Table6[[#This Row],[SD]],'[1]BASE LOGEMENTS VILLE 2018'!A:A,0))","v":{"$error":"#N/A"}}]
[1394,null,{"$f":"INDEX('[1]BASE LOGEMENTS VILLE 2018'!C:C, MATCH(Table6[[#This Row],[SD]],'[1]BASE LOGEMENTS VILLE 2018'!A:A,0))","v":{"$error":"#N/A"}},{"$f":"INDEX('[1]BASE LOGEMENTS VILLE 2018'!J:J, MATCH(Table6[[#This Row],[SD]],'[1]BASE LOGEMENTS VILLE 2018'!A:A,0))","v":{"$error":"#N/A"}},{"$f":"INDEX('[1]BASE LOGEMENTS VILLE 2018'!E:E, MATCH(Table6[[#This Row],[SD]],'[1]BASE LOGEMENTS VILLE 2018'!A:A,0))","v":{"$error":"#N/A"}},{"$f":"INDEX('[1]BASE LOGEMENTS VILLE 2018'!F:F, MATCH(Table6[[#This Row],[SD]],'[1]BASE LOGEMENTS VILLE 2018'!A:A,0))","v":{"$error":"#N/A"}},{"$f":"INDEX('[1]BASE LOGEMENTS VILLE 2018'!G:G, MATCH(Table6[[#This Row],[SD]],'[1]BASE LOGEMENTS VILLE 2018'!A:A,0))","v":{"$error":"#N/A"}}]
[1818,null,{"$f":"INDEX('[1]BASE LOGEMENTS VILLE 2018'!C:C, MATCH(Table6[[#This Row],[SD]],'[1]BASE LOGEMENTS VILLE 2018'!A:A,0))","v":{"$error":"#N/A"}},{"$f":"INDEX('[1]BASE LOGEMENTS VILLE 2018'!J:J, MATCH(Table6[[#This Row],[SD]],'[1]BASE LOGEMENTS VILLE 2018'!A:A,0))","v":{"$error":"#N/A"}},{"$f":"INDEX('[1]BASE LOGEMENTS VILLE 2018'!E:E, MATCH(Table6[[#This Row],[SD]],'[1]BASE LOGEMENTS VILLE 2018'!A:A,0))","v":{"$error":"#N/A"}},{"$f":"INDEX('[1]BASE LOGEMENTS VILLE 2018'!F:F, MATCH(Table6[[#This Row],[SD]],'[1]BASE LOGEMENTS VILLE 2018'!A:A,0))","v":{"$error":"#N/A"}},{"$f":"INDEX('[1]BASE LOGEMENTS VILLE 2018'!G:G, MATCH(Table6[[#This Row],[SD]],'[1]BASE LOGEMENTS VILLE 2018'!A:A,0))","v":{"$error":"#N/A"}}]
[1515,null,{"$f":"INDEX('[1]BASE LOGEMENTS VILLE 2018'!C:C, MATCH(Table6[[#This Row],[SD]],'[1]BASE LOGEMENTS VILLE 2018'!A:A,0))","v":{"$error":"#N/A"}},{"$f":"INDEX('[1]BASE LOGEMENTS VILLE 2018'!J:J, MATCH(Table6[[#This Row],[SD]],'[1]BASE LOGEMENTS VILLE 2018'!A:A,0))","v":{"$error":"#N/A"}},{"$f":"INDEX('[1]BASE LOGEMENTS VILLE 2018'!E:E, MATCH(Table6[[#This Row],[SD]],'[1]BASE LOGEMENTS VILLE 2018'!A:A,0))","v":{"$error":"#N/A"}},{"$f":"INDEX('[1]BASE LOGEMENTS VILLE 2018'!F:F, MATCH(Table6[[#This Row],[SD]],'[1]BASE LOGEMENTS VILLE 2018'!A:A,0))","v":{"$error":"#N/A"}},{"$f":"INDEX('[1]BASE LOGEMENTS VILLE 2018'!G:G, MATCH(Table6[[#This Row],[SD]],'[1]BASE LOGEMENTS VILLE 2018'!A:A,0))","v":{"$error":"#N/A"}}]
[611,null,{"$f":"INDEX('[1]BASE LOGEMENTS VILLE 2018'!C:C, MATCH(Table6[[#This Row],[SD]],'[1]BASE LOGEMENTS VILLE 2018'!A:A,0))","v":{"$error":"#N/A"}},{"$f":"INDEX('[1]BASE LOGEMENTS VILLE 2018'!J:J, MATCH(Table6[[#This Row],[SD]],'[1]BASE LOGEMENTS VILLE 2018'!A:A,0))","v":{"$error":"#N/A"}},{"$f":"INDEX('[1]BASE LOGEMENTS VILLE 2018'!E:E, MATCH(Table6[[#This Row],[SD]],'[1]BASE LOGEMENTS VILLE 2018'!A:A,0))","v":{"$error":"#N/A"}},{"$f":"INDEX('[1]BASE LOGEMENTS VILLE 2018'!F:F, MATCH(Table6[[#This Row],[SD]],'[1]BASE LOGEMENTS VILLE 2018'!A:A,0))","v":{"$error":"#N/A"}},{"$f":"INDEX('[1]BASE LOGEMENTS VILLE 2018'!G:G, MATCH(Table6[[#This Row],[SD]],'[1]BASE LOGEMENTS VILLE 2018'!A:A,0))","v":{"$error":"#N/A"}}]
[1818,null,{"$f":"INDEX('[1]BASE LOGEMENTS VILLE 2018'!C:C, MATCH(Table6[[#This Row],[SD]],'[1]BASE LOGEMENTS VILLE 2018'!A:A,0))","v":{"$error":"#N/A"}},{"$f":"INDEX('[1]BASE LOGEMENTS VILLE 2018'!J:J, MATCH(Table6[[#This Row],[SD]],'[1]BASE LOGEMENTS VILLE 2018'!A:A,0))","v":{"$error":"#N/A"}},{"$f":"INDEX('[1]BASE LOGEMENTS VILLE 2018'!E:E, MATCH(Table6[[#This Row],[SD]],'[1]BASE LOGEMENTS VILLE 2018'!A:A,0))","v":{"$error":"#N/A"}},{"$f":"INDEX('[1]BASE LOGEMENTS VILLE 2018'!F:F, MATCH(Table6[[#This Row],[SD]],'[1]BASE LOGEMENTS VILLE 2018'!A:A,0))","v":{"$error":"#N/A"}},{"$f":"INDEX('[1]BASE LOGEMENTS VILLE 2018'!G:G, MATCH(Table6[[#This Row],[SD]],'[1]BASE LOGEMENTS VILLE 2018'!A:A,0))","v":{"$error":"#N/A"}}]